[Event "44th Chess Olympiad Open 2022"]
[Site "Chennai"]
[Date "2022.08.06"]
[Round "8.64"]
[White "Mizzi, Jack"]
[Black "Lima, Osvaldo Dos Santos"]
[Result "1-0"]
[ECO "E60"]
[WhiteElo "1913"]
[BlackElo "1863"]
[Annotator "TA"]
[PlyCount "65"]
[EventDate "2022.07.29"]
[EventType "team-tourn"]
[EventCountry "IND"]
[SourceTitle "playchess.com"]
[Source "ChessBase"]
[SourceQuality "1"]
[WhiteTeam "Malta"]
[BlackTeam "STP"]
[WhiteTeamCountry "MLT"]
[TimeControl "40/5400+30:1800+30"]

{[%evp 16,65,65,67,70,39,56,52,71,55,58,46,58,51,53,42,50,0,15,17,47,-64,-64,-64,-63,-83,-85,-85,-86,-86,-86,-86,-86,-94,-93,-100,-100,-95,-39,-39,0,-102,-86,-87,0,0,0,0,1153,1031,29983,29980]} 1. d4 {[%emt 0:00:05]} Nf6 {[%emt 0:00:11]} 2. c4 {[%emt 0:00:10]} g6 {[%emt 0:00:55]} 3. g3 {[%emt 0:00:53]} Bg7 {[%emt 0:00:53]} 4. Bg2 {[%emt 0:00:16]} d6 {[%emt 0:00:32]} 5. Nf3 {[%emt 0:00:20]} O-O {[%emt 0:01:30]} 6. O-O {[%emt 0:00:32]} Nc6 {[%emt 0:00:03]} 7. d5 {[%emt 0:04:46]} Ne5 {[%emt 0:06:22]} 8. Nxe5 {[%emt 0:01:09]} dxe5 {[%emt 0:00:01]} 9. Nc3 {[%emt 0:00:24]} Ne8 {[%emt 0:06:03] E60: King's Indian: Unusual lines and Fianchetto Variation without Nc3.} 10. Qb3 {[%emt 0:10:07]} Rb8 {[%emt 0:01:43] [#]} 11. c5 $146 {[%emt 0:02:47][%cal Bc4c5,Bc5c6][%mdl 32]} ({Predecessor:} 11. Rd1 b6 12. Nb5 a6 13. Na7 Bb7 14. Be3 Nd6 15. Nc6 Bxc6 16. dxc6 Qe8 17. Rac1 {1-0 (48) Tadic,B (2472)-Breckenridge,S (2239) Chess.com INT 2017}) 11... b6 {[%emt 0:01:14] White is slightly better.} 12. c6 {[%emt 0:01:21] White is more active.} Nd6 {[%emt 0:00:51]} 13. a4 {[%emt 0:09:27]} a5 {[%emt 0:00:03]} 14. Nb5 {[%emt 0:12:24]} Ba6 {[%emt 0:01:13]} 15. Bd2 {[%emt 0:07:18]} f5 {[%emt 0:01:23]} 16. f4 {[%emt 0:01:57]} (16. f3 $14) 16... exf4 {[%emt 0:08:55]} 17. Bxf4 {[%emt 0:04:35]} h6 {[%emt 0:00:12]} 18. Bxd6 {[%emt 0:04:42]} (18. h4 $1 $14) 18... exd6 $15 {[%emt 0:00:32]} 19. e4 {[%emt 0:01:07]} Bxb5 {[%emt 0:02:43]} 20. axb5 {[%emt 0:00:57]} Qf6 {[%emt 0:02:38]} 21. exf5 {[%emt 0:04:38]} Qxb2 {[%emt 0:02:10]} 22. Qxb2 {[%emt 0:00:20]} Bxb2 {[%emt 0:00:31]} 23. Ra4 {[%emt 0:01:33]} Rxf5 {[%emt 0:02:01]} 24. Rxf5 {[%emt 0:00:14]} gxf5 $17 {[%emt 0:00:48][%mdl 4096] Endgame KRB-KRB} 25. Bh3 {[%emt 0:00:40]} Rf8 {[%emt 0:01:36]} 26. Rf4 {[%emt 0:03:34]} Ra8 {[%emt 0:04:09]} (26... Bc1 $17 27. Rc4 Bg5) 27. Ra4 $15 {[%emt 0:03:52]} Rf8 {[%emt 0:00:22]} ({Black should play} 27... Kf7 $15) 28. Rf4 $17 {[%emt 0:00:16]} Be5 {[%emt 0:12:29]} 29. Rxf5 {[%emt 0:01:44]} Ra8 {[%emt 0:01:48]} (29... Re8 $17 {And now ...a4 would win.} 30. Bf1 a4) 30. Rxe5 $1 $11 {[%emt 0:10:25]} dxe5 {[%emt 0:00:02]} 31. d6 $1 {[%emt 0:00:08]} Ra7 $2 {[%emt 0:00:04][%mdl 8192] [#]} (31... cxd6 $11 32. c7 a4 33. c8=Q+ Rxc8 34. Bxc8 Kf7) 32. Bc8 $1 $18 {[%emt 0:01:01] White threatens d7 and mate.} ({Wrong is} 32. Be6+ $2 Kf8 33. dxc7 Rxc7 $19) 32... Kf8 {[%emt 0:02:15]} 33. Bb7 {[%emt 0:00:16] Weighted Error Value: White=0.13 (very precise) /Black=0.49} 1-0

[Event "44th Chess Olympiad Open 2022"]
[Site "Chennai"]
[Date "2022.08.06"]
[Round "8.65"]
[White "Lau, Lut Yin Luke"]
[Black "Guillaume, Jude Mirvens"]
[Result "*"]
[WhiteElo "2027"]
[BlackElo "2022"]
[Annotator "TA"]
[PlyCount "35"]
[EventDate "2022.07.29"]
[EventType "team-tourn"]
[EventCountry "IND"]
[SourceTitle "playchess.com"]
[Source "ChessBase"]
[SourceQuality "1"]
[WhiteTeam "Hong Kong"]
[BlackTeam "Haiti"]
[WhiteTeamCountry "HKG"]
[BlackTeamCountry "HAI"]
[TimeControl "40/5400+30:1800+30"]

{[%evp 11,12,-28,0]} 1. d4 {[%emt 0:00:04]} Nf6 {[%emt 0:00:56]} 2. Nf3 {[%emt 0:00:08]} d5 {[%emt 0:01:27]} 3. g3 {[%emt 0:00:53]} Ng8 {[%emt 0:02:01]} 4. Ng1 {[%emt 0:00:09]} Nf6 {[%emt 0:00:56]} 5. Nf3 {[%emt 0:00:04]} Ng8 {[%emt 0:01:11]} 6. Ng1 {[%emt 0:00:07]} Nf6 {[%emt 0:06:45] [#]} (6... c5 $5) {Predecessor:} 7. Bg2 $146 {D00: 1 d4 d5: Unusual lines.} c5 8. c4 cxd4 9. Nf3 dxc4 10. Qxd4 Bd7 11. O-O e6 12. Nc3 Nc6 13. Qxc4 Rc8 14. Qf4 h6 15. Nb5 Nb4 16. Rd1 Nbd5 17. Nd6+ Bxd6 18. Qxd6 {½-½ (59) Rapport,R (2763)-Vidit,S (2727) Wijk aan Zee 2022} *

[Event "44th Chess Olympiad Open 2022"]
[Site "Chennai"]
[Date "2022.08.06"]
[Round "8.65"]
[White "Gabriel, Davidson"]
[Black "Kannappan, Thanneermalai"]
[Result "1-0"]
[ECO "D87"]
[WhiteElo "1915"]
[BlackElo "1699"]
[Annotator "TA"]
[PlyCount "97"]
[EventDate "2022.07.29"]
[EventType "team-tourn"]
[EventCountry "IND"]
[SourceTitle "playchess.com"]
[Source "ChessBase"]
[SourceQuality "1"]
[WhiteTeam "Haiti"]
[BlackTeam "Hong Kong"]
[WhiteTeamCountry "HAI"]
[BlackTeamCountry "HKG"]
[TimeControl "40/5400+30:1800+30"]

{[%evp 21,97,39,31,7,2,0,0,0,0,4,0,0,30,0,0,0,0,-4,33,39,34,37,32,31,47,56,210,0,0,0,0,-86,-88,-81,-61,-110,-92,-109,-81,-112,-117,-111,-105,-84,-75,-70,0,-57,-18,-97,-82,-85,0,0,0,0,0,0,695,720,558,253,4921,4921,29983,29984,29986,29980,29987,29981,29980,29981,29988,29989,29992,29993,29993,29993]} 1. d4 {[%emt 0:00:04]} Nf6 {[%emt 0:00:17]} 2. c4 {[%emt 0:00:27]} g6 {[%emt 0:00:18]} 3. Nc3 {[%emt 0:00:41]} d5 {[%emt 0:00:18]} 4. cxd5 {[%emt 0:01:51]} Nxd5 {[%emt 0:00:22]} 5. e4 {[%emt 0:01:21]} Nxc3 {[%emt 0:00:30]} 6. bxc3 {[%emt 0:01:02]} Bg7 {[%emt 0:00:09]} 7. Bc4 {[%emt 0:02:00]} c5 {[%emt 0:00:29]} 8. Ne2 {[%emt 0:00:34]} Nc6 {[%emt 0:00:19]} 9. Be3 {[%emt 0:01:01]} O-O {[%emt 0:00:47]} 10. O-O {[%emt 0:00:46]} Bg4 {[%emt 0:00:21]} 11. f3 {[%emt 0:01:51]} Bd7 {[%emt 0:00:14] seems to push 11...Na5 aside.} 12. Qd2 {[%emt 0:02:39] D87: Exchange Grünfeld: Classical Line: Variations without ...cxd4.} Qa5 {[%emt 0:00:22]} 13. Qb2 {[%emt 0:03:45]} b5 {[%emt 0:00:16]} 14. Bd5 {[%emt 0:03:23] The position is equal.} ({Much worse is} 14. Bxb5 Rfb8 15. a4 cxd4 $17) 14... e6 {[%emt 0:20:13]} 15. Bxc6 {[%emt 0:03:52]} Bxc6 {[%emt 0:00:06]} 16. dxc5 {[%emt 0:00:10] [#]} Rfd8 $146 {[%emt 0:11:37][%cal Ob5b4]} (16... b4 $5 {[%cal Rb4c3]}) ({Predecessor:} 16... b4 17. Bd4 bxc3 18. Qxc3 Bxd4+ 19. Qxd4 Bb5 20. Rf2 Rac8 21. Ng3 Rfd8 22. Qe3 Rd3 {½-½ (32) Dietmayer Kraeutler,M (2328)-Dahl,B (2031) Krakow 2018}) 17. Nd4 {[%emt 0:01:13]} Be8 {[%emt 0:01:49]} 18. Bg5 {[%emt 0:04:31]} Rdc8 {[%emt 0:03:08]} 19. Be7 {[%emt 0:00:53]} e5 {[%emt 0:10:46]} 20. Nb3 {[%emt 0:02:05]} Qa4 {[%emt 0:01:49]} 21. Rad1 {[%emt 0:02:21]} f6 {[%emt 0:04:00]} 22. Rf2 {[%emt 0:03:42]} Bf7 {[%emt 0:06:33]} 23. Rfd2 {[%emt 0:00:17]} Be6 $2 {[%emt 0:00:33] Against Rd7} (23... a5 $14) 24. Nc1 $2 {[%emt 0:03:01]} (24. Rd6 $18 Qc4 25. Na5 Qxc5+ 26. Kh1) 24... Kf7 $11 {[%emt 0:02:09]} 25. Bd6 {[%emt 0:04:03]} Bh6 {[%emt 0:00:31]} 26. Ne2 {[%emt 0:02:25]} Bxd2 {[%emt 0:02:13]} 27. Rxd2 {[%emt 0:00:36]} a5 {[%emt 0:03:55]} 28. a3 {[%emt 0:03:04]} (28. Nc1 $15 {deserves consideration.}) 28... Ra7 {[%emt 0:02:58]} 29. h4 {[%emt 0:01:11]} Rb7 {[%emt 0:00:57]} 30. Kh2 {[%emt 0:02:51]} b4 {[%emt 0:03:51]} 31. cxb4 {[%emt 0:00:28]} axb4 {[%emt 0:00:11]} 32. axb4 {[%emt 0:00:24]} Rxb4 {[%emt 0:01:14]} 33. Qc1 {[%emt 0:00:23]} Rc4 {[%emt 0:07:27]} ({Better is} 33... Ra8 $15) 34. Qg1 {[%emt 0:01:52]} ({White should play} 34. Qb1 $11) 34... Qb3 {[%emt 0:01:49]} (34... Ra8 $5 {[%cal Ra4b3]}) 35. Qa1 {[%emt 0:02:00] Inhibits Ra8.} (35. Qf2 $11 {remains equal.}) 35... Ra4 $17 {[%emt 0:02:19]} 36. Qc1 {[%emt 0:00:29] [#] Black must now prevent Rb2.} Ra2 {[%emt 0:04:57] Prevents Rb2.} (36... Qe3 $1 $17) 37. Rxa2 $11 {[%emt 0:01:19]} Qxa2 {[%emt 0:00:17]} 38. Qh6 {[%emt 0:02:46]} Kg8 {[%emt 0:02:39]} 39. h5 {[%emt 0:03:28][%cal Od6e7] Strongly threatening Be7!} Bf7 $2 {[%emt 0:03:01][%mdl 8192] [#]} (39... Qxe2 {leads to mate.} 40. hxg6) (39... Qa7 $11) 40. Nc3 $1 $18 {[%emt 0:00:49]} Qa7 {[%emt 0:02:17]} 41. hxg6 $40 {[%emt 0:30:29][%mdl 128] White is out for blood.} (41. c6 $142) 41... Bxg6 $2 {[%emt 0:31:02]} (41... hxg6 42. Nd5 Bxd5 43. Qxg6+ (43. exd5 Qg7 $11) 43... Qg7 44. Qxg7+ Kxg7 45. exd5 Kf7) 42. Nd5 {[%emt 0:00:30] Intending Ne7+ and mate.} Kf7 {[%emt 0:00:00]} 43. Qh4 {[%emt 0:00:00] White mates.} Re8 {[%emt 0:00:00]} 44. Qxf6+ {[%emt 0:00:00]} Kg8 {[%emt 0:00:00]} 45. Bxe5 {[%emt 0:00:00]} Rxe5 {[%emt 0:00:00]} 46. Qxe5 {[%emt 0:00:00]} Qa5 {[%emt 0:00:00]} 47. c6 {[%emt 0:00:00][%cal Bc5c6,Bc6c7][%mdl 32]} Qe1 {[%emt 0:00:00]} 48. Qf6 {[%emt 0:00:00][%cal Rd5e7]} Bf7 {[%emt 0:00:00]} 49. c7 {[%emt 0:00:00] Weighted Error Value: White=0.36/Black=0.59} 1-0

[Event "44th Chess Olympiad Open 2022"]
[Site "Chennai"]
[Date "2022.08.06"]
[Round "8.65"]
[White "Nissinen, Niilo Man"]
[Black "Germinal, Kemly"]
[Result "1-0"]
[ECO "C45"]
[WhiteElo "1693"]
[BlackElo "1997"]
[Annotator "TA"]
[PlyCount "113"]
[EventDate "2022.07.29"]
[EventType "team-tourn"]
[EventCountry "IND"]
[SourceTitle "playchess.com"]
[Source "ChessBase"]
[SourceQuality "1"]
[WhiteTeam "Hong Kong"]
[BlackTeam "Haiti"]
[WhiteTeamCountry "HKG"]
[BlackTeamCountry "HAI"]
[TimeControl "40/5400+30:1800+30"]

{[%evp 12,113,12,28,45,32,39,37,41,43,43,0,0,0,0,0,0,0,0,4,0,-2,0,-7,-1,-4,7,9,0,2,4,-12,0,0,0,-15,0,0,10,0,0,-4,50,16,57,40,40,43,43,50,51,55,59,43,53,44,66,34,77,88,154,141,337,335,312,305,543,221,193,181,201,190,396,438,444,444,428,423,429,443,530,526,1169,958,4145,4145,4145,4145,4137,1050,29981,11877,29985,29983,29987,29988,29988,29986,29989,29983,29986,29986,29987,11877]} 1. e4 {[%emt 0:00:03]} e5 {[%emt 0:00:09]} 2. Nf3 {[%emt 0:00:06]} Nc6 {[%emt 0:00:06]} 3. d4 {[%emt 0:00:05]} exd4 {[%emt 0:01:01]} 4. Nxd4 {[%emt 0:00:07]} Bc5 {[%emt 0:00:19]} 5. Nb3 {[%emt 0:00:07]} Bb6 {[%emt 0:00:47]} 6. Nc3 {[%emt 0:00:07]} d6 {[%emt 0:01:30]} 7. Qe2 {[%emt 0:00:18]} h6 {[%emt 0:04:42] 7...a5 is becoming the main line. C45: Scotch Game.} 8. Be3 {[%emt 0:00:14]} Nf6 {[%emt 0:00:26][%cal Bg8f6,Bf6h5,Bh5f4][%mdl 32]} 9. O-O-O {[%emt 0:00:23]} Qe7 {[%emt 0:04:03] White is slightly better.} 10. f3 {[%emt 0:01:38]} Be6 {[%emt 0:03:39] [#]} 11. h3 $146 {[%emt 0:07:25]} ({Predecessor:} 11. Qd2 Bxe3 12. Qxe3 a5 13. Bb5 O-O 14. a4 Bxb3 15. cxb3 Nb4 16. Kb1 c6 17. Bd3 {½-½ (51) Goryachkina,A (2608)-Mamedjarova,T (2264) Chess.com INT 2021}) 11... Nh5 {[%emt 0:03:56] [#] White must now prevent ...Ng3.} 12. Rg1 {[%emt 0:06:13]} Nf4 {[%emt 0:07:24]} 13. Qd2 {[%emt 0:02:14]} Bxe3 {[%emt 0:02:37]} 14. Qxe3 {[%emt 0:00:07]} Qg5 {[%emt 0:01:27][%cal Of4e2] Strongly threatening ...Ne2+!} 15. Re1 {[%emt 0:06:59] Prevents Ne2+. Black should prevent g3.} Ng6 {[%emt 0:11:59]} 16. g3 {[%emt 0:07:35]} Qxe3+ {[%emt 0:00:32]} 17. Rxe3 {[%emt 0:00:08]} O-O-O {[%emt 0:00:55]} 18. Nb5 {[%emt 0:10:51]} Rhe8 {[%emt 0:14:26]} 19. N5d4 {[%emt 0:03:50]} Nxd4 {[%emt 0:03:11]} 20. Nxd4 {[%emt 0:00:07]} Bd7 {[%emt 0:01:23]} 21. Kd2 {[%emt 0:11:10]} Re7 {[%emt 0:03:42]} 22. Bg2 {[%emt 0:02:19]} Rde8 {[%emt 0:00:32][%cal Of7f5]} 23. Rge1 {[%emt 0:00:55]} Ne5 {[%emt 0:00:58] ...Nc4+ is the strong threat.} 24. b3 {[%emt 0:01:30] Prevents Nc4+.} g6 {[%emt 0:00:56]} 25. c4 {[%emt 0:05:56]} a5 {[%emt 0:01:29]} 26. Ne2 {[%emt 0:02:34]} f5 {[%emt 0:06:51]} ({Better is} 26... g5 $11) 27. Nc3 {[%emt 0:06:14]} (27. f4 $5 {[%cal Rf4e5]} Nc6 28. Nc3 $14) 27... c6 {[%emt 0:04:35]} 28. exf5 {[%emt 0:03:07]} gxf5 {[%emt 0:00:33]} 29. f4 {[%emt 0:01:31]} Ng6 {[%emt 0:00:10]} 30. Rxe7 {[%emt 0:02:01]} Rxe7 {[%emt 0:00:07]} 31. Rxe7 {[%emt 0:00:13]} Nxe7 $14 {[%emt 0:00:05][%mdl 4096] Endgame KBN-KBN} 32. Bf3 {[%emt 0:00:24]} Kd8 {[%emt 0:01:05]} 33. Ke3 {[%emt 0:00:47]} Ke8 {[%emt 0:02:50]} 34. g4 {[%emt 0:04:24]} Kf7 {[%emt 0:00:19]} 35. g5 {[%emt 0:02:07]} hxg5 {[%emt 0:07:26]} ({Black should play} 35... Ng6) 36. fxg5 $16 {[%emt 0:00:08] Threatens to win with h4.} Ng6 {[%emt 0:02:34] [#] This move loses the game for Black.} (36... f4+ $16 37. Kxf4 Bxh3) 37. Bh5 $1 $18 {[%emt 0:02:35]} f4+ {[%emt 0:00:29]} 38. Kf3 {[%emt 0:00:20]} Bxh3 $2 {[%emt 0:01:24]} (38... b5 39. cxb5 cxb5) 39. Ne4 {[%emt 0:04:10]} (39. Ne2 $142 Kg7 40. Bxg6 (40. Nxf4 Nxf4 41. Kxf4 a4 $14) 40... Kxg6 41. Nxf4+ Kxg5 42. Nxh3+ Kg6 43. Ke4) 39... d5 {[%emt 0:00:38]} 40. cxd5 {[%emt 0:00:25]} cxd5 {[%emt 0:00:06]} 41. Nd6+ {[%emt 0:30:41]} Kg7 $2 {[%emt 0:30:07]} (41... Ke7) 42. Nxb7 {[%emt 0:06:54]} Ne5+ {[%emt 0:00:23]} 43. Kxf4 {[%emt 0:00:41]} Nd3+ {[%emt 0:00:00]} 44. Kg3 {[%emt 0:00:00]} Bf5 {[%emt 0:00:00]} 45. Nxa5 {[%emt 0:00:00]} Nc1 {[%emt 0:00:00]} 46. b4 {[%emt 0:00:00][%cal Bb3b4,Bb4b5,Bb5b6][%mdl 32]} Nxa2 {[%emt 0:00:00]} 47. b5 {[%emt 0:00:00]} Nc3 {[%emt 0:00:00]} 48. b6 {[%emt 0:00:00]} Ne4+ {[%emt 0:00:00]} 49. Kf4 {[%emt 0:00:00] b7 would kill now.} Bc8 {[%emt 0:00:00]} 50. Bf3 {[%emt 0:00:00]} (50. b7 $142 Bxb7 51. Nxb7) 50... Nxg5 {[%emt 0:00:00]} 51. Kxg5 {[%emt 0:00:00]} Kf7 {[%emt 0:00:00]} 52. Kf4 {[%emt 0:00:00] White mates.} Ba6 {[%emt 0:07:09]} 53. Ke5 {[%emt 0:00:00]} d4 {[%emt 0:03:30]} 54. Kxd4 {[%emt 0:00:00]} Ke6 {[%emt 0:00:14]} 55. Kc5 {[%emt 0:00:00]} Kd7 {[%emt 0:00:16]} 56. Bg4+ {[%emt 0:00:00]} Kd8 {[%emt 0:00:10]} 57. Kd6 {[%emt 0:00:00] Weighted Error Value: White=0.15 (very precise) /Black=0.52} 1-0

[Event "44th Chess Olympiad Open 2022"]
[Site "Chennai"]
[Date "2022.08.06"]
[Round "8.66"]
[White "Matoewi, Roger"]
[Black "Al Busaidi, Hamood"]
[Result "0-1"]
[ECO "A37"]
[WhiteElo "2015"]
[BlackElo "1743"]
[Annotator "TA"]
[PlyCount "88"]
[EventDate "2022.07.29"]
[EventType "team-tourn"]
[EventCountry "IND"]
[SourceTitle "playchess.com"]
[Source "ChessBase"]
[SourceQuality "1"]
[WhiteTeam "Surinam"]
[BlackTeam "OMA"]
[WhiteTeamCountry "SUR"]
[TimeControl "40/5400+30:1800+30"]

{[%evp 9,88,10,24,20,33,5,0,-26,-16,-35,-11,-29,-23,-37,-18,-27,-12,-39,-33,-28,-33,-30,-26,-47,-33,-50,-39,-24,-23,-45,-45,-53,-37,-41,-43,-156,-58,-161,-153,-221,-205,-238,-168,-202,-198,-295,-287,-296,-265,-294,-226,-274,-203,-205,-205,-201,-182,-193,-60,-67,-83,-92,-62,-520,-57,-141,-104,-309,-320,-644,-644,-2310,-942,-2552,-2646,-2393,-2334,-1887,-1887,-1687,-1315]} 1. Nf3 {[%emt 0:00:07]} c5 {[%emt 0:00:11]} 2. c4 {[%emt 0:00:08]} g6 {[%emt 0:00:54]} 3. g3 {[%emt 0:00:05]} Bg7 {[%emt 0:00:05]} 4. Bg2 {[%emt 0:00:04]} Nc6 {[%emt 0:00:46]} 5. Nc3 {[%emt 0:00:03]} e5 {[%emt 0:02:24]} 6. d3 {[%emt 0:01:21] A37: Symmetrical English vs ...g6: 4 Bg2 Bg7 5 Nf3.} h6 {[%emt 0:00:34]} 7. h4 {[%emt 0:04:27]} d6 {[%emt 0:02:07]} 8. h5 {[%emt 0:04:29] The position is equal.} g5 $1 {[%emt 0:02:28] [#]} 9. Bd2 $146 {[%emt 0:00:00]} ({Predecessor:} 9. a3 f5 10. Rb1 Nf6 11. b4 O-O 12. Bxg5 hxg5 13. h6 Bh8 14. Nxg5 Re8 15. e3 {0-1 (38) Ricardi,P (2504)-Flores,D (2599) Mar del Plata 2012}) 9... Bg4 {[%emt 0:08:40]} 10. Nd5 {[%emt 0:00:00]} Nf6 {[%emt 0:12:26]} 11. Nxf6+ {[%emt 0:00:00]} (11. a3 {looks sharper.} Rb8 12. b4 e4 13. dxe4 Nxe4 14. Rc1) 11... Bxf6 {[%emt 0:00:48]} 12. Bc3 {[%emt 0:01:19]} O-O {[%emt 0:05:06]} 13. Qd2 {[%emt 0:11:08]} d5 {[%emt 0:09:14]} 14. Nh2 {[%emt 0:07:26][%csl LRd5,LRg4]} Be6 {[%emt 0:01:34]} (14... Bxh5 15. Bxd5 Bg7 16. O-O-O $14) 15. cxd5 {[%emt 0:03:26]} Bxd5 {[%emt 0:00:07]} 16. Bxd5 {[%emt 0:00:09]} Qxd5 {[%emt 0:00:08]} 17. e4 {[%emt 0:00:14]} Qe6 {[%emt 0:00:44]} 18. Qe2 {[%emt 0:00:19]} b5 {[%emt 0:12:58]} 19. b3 {[%emt 0:03:27]} (19. Ng4 b4 20. Nxh6+ Kh7 $17) 19... Bg7 {[%emt 0:10:55]} 20. Ng4 {[%emt 0:22:59]} Nd4 {[%emt 0:09:15]} 21. Bxd4 {[%emt 0:01:18]} exd4 {[%emt 0:00:02]} 22. f3 {[%emt 0:07:33] [#]} (22. Rc1 $1 $15) 22... f5 {[%emt 0:01:04]} (22... c4 $1 $17 {And now ...cxd3 would win.} 23. Rc1 (23. bxc4 bxc4 24. O-O c3 $17) (23. dxc4 $2 d3 $19) 23... c3) 23. Nf2 {[%emt 0:00:11]} (23. exf5 $15 Qxf5 24. O-O) 23... c4 $19 {[%emt 0:02:52]} 24. g4 {[%emt 0:01:37]} (24. O-O $17 {is a better defense.}) 24... fxg4 {[%emt 0:02:20]} 25. Nxg4 {[%emt 0:01:21]} Be5 {[%emt 0:00:29]} (25... cxb3 26. axb3 Qxb3 27. O-O $17) 26. O-O {[%emt 0:01:44][%cal Rd3c4]} c3 {[%emt 0:02:35]} ({Not} 26... cxb3 27. axb3 a5 28. Rac1 $11) 27. Rac1 {[%emt 0:01:04]} (27. a3 $142) 27... a5 {[%emt 0:01:11]} 28. Rc2 {[%emt 0:00:10][%cal Bc1c2,Bc2e2,Be2e4,Be4d4][%mdl 32]} Rae8 {[%emt 0:00:39]} 29. Qg2 {[%emt 0:00:32]} Bf4 {[%emt 0:00:52]} 30. Re2 {[%emt 0:00:22]} Kg7 {[%emt 0:03:40]} 31. e5 {[%emt 0:06:19]} Qf5 {[%emt 0:02:10]} 32. Re4 {[%emt 0:02:10]} Rc8 {[%emt 0:00:51]} ({Resist} 32... Bxe5 33. Qe2 $16) 33. Qc2 {[%emt 0:02:17]} Rc6 {[%emt 0:04:40]} (33... Rfd8 $19 {Hoping for ...Qf7.} 34. a4 b4) 34. Rxd4 $15 {[%emt 0:03:44]} Bxe5 {[%emt 0:00:29] Black is more active.} 35. Re4 {[%emt 0:01:02]} Bf4 {[%emt 0:01:01]} 36. d4 $2 {[%emt 0:01:34][%mdl 8192]} (36. Kg2 $15) 36... Rc7 $2 {[%emt 0:00:55]} (36... Re6 $19 {aiming for ...Rxe4.} 37. Re2 Rxe2 38. Qxe2 c2) 37. Rfe1 {[%emt 0:06:23]} ({Better is} 37. Kg2 $15) 37... Rff7 {[%emt 0:00:23]} 38. d5 $2 {[%emt 0:01:05]} (38. R1e2 $17 {might work better.}) 38... Bd2 $19 {[%emt 0:01:12]} 39. Rf1 {[%emt 0:00:50]} (39. d6 Rcd7 40. Nxh6 Kxh6 41. Re6+ Kg7 42. h6+ Kh7 43. Qxf5+ Rxf5 44. Re7+ Rf7 45. Rxf7+ Rxf7 46. Re7 Rxe7 47. dxe7) 39... Rce7 {[%emt 0:00:40] Strongly threatening ...Rxe4. Black is clearly winning.} 40. Nh2 {[%emt 0:01:53]} Be3+ {[%emt 0:00:26]} (40... Rxe4 $142 41. fxe4 Be3+ 42. Kg2 {[#]} Qf2+ $3 {[%mdl 512]} 43. Qxf2 Rxf2+ 44. Rxf2 Bxf2 45. Kxf2 c2) 41. Kg2 {[%emt 0:32:53]} Rxe4 {[%emt 0:30:24]} 42. fxe4 {[%emt 0:00:59] [#]} Qf2+ $3 {[%emt 0:00:00][%mdl 512]} 43. Rxf2 {[%emt 0:00:00]} (43. Qxf2 Rxf2+) 43... Rxf2+ {[%emt 0:00:00]} 44. Qxf2 {[%emt 0:00:00]} Bxf2 {[%emt 0:00:00] Weighted Error Value: White=0.87/Black=0.51} 0-1